bitfinex-derivatives/quotes_BNBF0:USTF0_20241225
["timestamp","ask_amount","ask_price","bid_price","bid_amount"]
[1735090604114,0.26326552,698.94,697.81,0.28661096]
[1735090604317,2.17771997,699.42,697.81,0.28661096]
[1735090604318,0.26326552,698.93,697.81,0.28661096]
[1735090604615,0.26326552,698.92,697.81,0.28661096]
[1735090604816,0.26326552,698.91,697.81,0.28661096]
[1735090605017,1.06663835,699.1,697.81,0.28661096]
[1735090605217,0.26326231,699.09,697.81,0.28661096]
[1735090605409,0.26326231,699.08,697.81,0.28661096]
[1735090605613,0.26326223,699.07,697.81,0.28661096]
[1735090605809,0.26326223,699.06,697.81,0.28661096]
[1735090606013,0.26326223,699.05,697.81,0.28661096]
[1735090606212,1.06663835,699.12,697.81,0.28661096]
[1735090606213,0.26326223,699.04,697.81,0.28661096]
[1735090606413,0.26326223,699.03,697.81,0.28661096]
[1735090606613,0.26326578,699.02,697.81,0.28661096]
[1735090606818,0.26326578,699.01,697.81,0.28661096]
[1735090607016,0.26326578,699.0,697.81,0.28661096]
[1735090607215,0.26326578,698.99,697.81,0.28661096]
[1735090607415,0.26326578,698.98,697.81,0.28661096]
[1735090607616,0.26326578,698.97,697.81,0.28661096]
[1735090607913,0.26326578,698.96,697.81,0.28661096]
[1735090608117,0.26326578,698.95,697.81,0.28661096]
[1735090608318,0.26325496,698.94,697.81,0.28661096]
[1735090608618,0.26325496,698.93,697.81,0.28661096]
[1735090608819,0.26325496,698.92,697.81,0.28661096]
[1735090609019,1.06663835,699.13,697.81,0.28661096]
[1735090609320,0.26325761,699.12,697.81,0.28661096]
[1735090609818,1.06663835,699.13,697.81,0.28661096]
[1735090610020,0.26325056,699.12,697.81,0.28661096]
[1735090610820,0.26325056,699.11,697.81,0.28661096]
[1735090611020,0.26325056,699.1,697.81,0.28661096]
[1735090611220,0.26325056,699.09,697.81,0.28661096]
[1735090611420,0.26325056,699.08,697.81,0.28661096]
[1735090611621,0.26325056,699.07,697.81,0.28661096]
[1735090611818,1.06663835,699.22,697.81,0.28661096]
[1735090611819,0.26325056,699.06,697.81,0.28661096]
[1735090612015,0.26329384,699.05,697.81,0.28661096]
[1735090612316,0.26329384,699.04,697.81,0.28661096]
[1735090612523,0.26329384,699.03,697.81,0.28661096]
[1735090612821,0.26329384,699.02,697.81,0.28661096]
[1735090613021,0.26329384,699.01,697.81,0.28661096]
[1735090613221,0.26329384,699.0,697.81,0.28661096]
[1735090613424,0.26329384,698.99,697.81,0.28661096]
[1735090613621,0.26329384,698.98,697.81,0.28661096]
[1735090613821,1.06663835,699.07,697.81,0.28661096]
[1735090614021,0.26331017,699.06,697.81,0.28661096]
[1735090614921,0.26331017,699.05,697.81,0.28661096]
[1735090615223,0.26331017,699.04,697.81,0.28661096]
[1735090615418,0.26331017,699.03,697.81,0.28661096]
[1735090615723,0.26331017,699.02,697.81,0.28661096]
[1735090615921,0.26331017,699.01,697.81,0.28661096]
[1735090616122,0.26331017,699.0,697.81,0.28661096]
[1735090616323,0.26331017,698.99,697.81,0.28661096]
[1735090616522,0.26331017,698.98,697.81,0.28661096]
[1735090616723,0.26331017,698.97,697.81,0.28661096]
[1735090617022,0.26331017,698.96,697.81,0.28661096]
[1735090617223,0.26331017,698.95,697.81,0.28661096]
[1735090617424,0.26331017,698.94,697.81,0.28661096]
[1735090617724,0.26331017,698.93,697.81,0.28661096]
[1735090617920,0.26331017,698.92,697.81,0.28661096]
[1735090618124,0.26331017,698.91,697.81,0.28661096]
[1735090618324,1.06663835,699.13,697.81,0.28661096]
[1735090618325,0.26331017,698.9,697.81,0.28661096]
[1735090618519,0.26331017,698.89,697.81,0.28661096]
[1735090618720,0.26331017,698.88,697.81,0.28661096]
[1735090618925,0.26331017,698.87,697.81,0.28661096]
[1735090619125,0.26331017,698.86,697.81,0.28661096]
[1735090619326,0.26333274,698.85,697.81,0.28661096]
[1735090619524,0.26333274,698.84,697.81,0.28661096]
[1735090619724,0.26333274,698.83,697.81,0.28661096]
[1735090619920,0.26333274,698.82,697.81,0.28661096]
[1735090620123,0.26333276,698.81,697.81,0.28661096]
[1735090620320,0.26333276,698.8,697.81,0.28661096]
[1735090620525,1.06663835,699.15,697.81,0.28661096]
[1735090620722,0.26333532,699.14,697.81,0.28661096]
[1735090621425,0.26334906,699.13,697.81,0.28661096]
[1735090621619,0.26334906,699.12,697.81,0.28661096]
[1735090623720,0.28607801,699.11,697.81,0.28661096]
[1735090623920,0.26334906,699.1,697.81,0.28661096]
[1735090624128,0.54942527,699.09,697.81,0.28661096]
[1735090624327,0.26333908,699.08,697.81,0.28661096]
[1735090626626,0.26338811,699.07,697.81,0.28661096]
[1735090626827,0.54948658,699.06,697.81,0.28661096]
[1735090627024,0.26338811,699.05,697.81,0.28661096]
[1735090627528,0.26335403,699.04,697.81,0.28661096]
[1735090627733,0.26335403,699.03,697.81,0.28661096]
[1735090627926,0.28609847,699.06,697.81,0.28661096]
[1735090627927,0.26335403,699.02,697.81,0.28661096]
[1735090628231,0.26335403,699.01,697.81,0.28661096]
[1735090628530,0.26335403,699.0,697.81,0.28661096]
[1735090628723,0.26335403,698.99,697.81,0.28661096]
[1735090628926,0.26335403,698.98,697.81,0.28661096]
[1735090629124,0.26335403,698.97,697.81,0.28661096]
[1735090629323,0.28609847,699.06,697.81,0.28661096]
[1735090629528,1.32995882,699.05,697.81,0.28661096]
[1735090629723,0.26332047,699.04,697.81,0.28661096]
[1735090630331,1.32995882,699.04,697.81,0.28661096]
[1735090630529,0.26332047,699.03,697.81,0.28661096]
[1735090631633,0.26332047,699.02,697.81,0.28661096]
[1735090631932,0.26332047,699.01,697.81,0.28661096]
[1735090632132,0.26333351,699.0,697.81,0.28661096]
[1735090632327,0.26333351,698.99,697.81,0.28661096]
[1735090632527,0.26333351,698.98,697.81,0.28661096]
[1735090632728,0.26333351,698.97,697.81,0.28661096]
[1735090632931,0.26333351,698.96,697.81,0.28661096]
[1735090633130,0.26333351,698.95,697.81,0.28661096]
[1735090633331,0.26333351,698.94,697.81,0.28661096]
[1735090633532,0.26333351,698.93,697.81,0.28661096]
[1735090633733,0.26333351,698.92,697.81,0.28661096]
[1735090634031,0.26333351,698.91,697.81,0.28661096]
[1735090634236,0.26333351,698.9,697.81,0.28661096]
[1735090634534,1.06663835,699.03,697.81,0.28661096]
[1735090634535,0.26333351,698.89,697.81,0.28661096]
[1735090634735,0.26333351,699.02,697.81,0.28661096]
[1735090635036,0.26332374,699.01,697.81,0.28661096]
[1735090635237,0.26332374,699.0,697.81,0.28661096]
[1735090635434,0.26332374,698.99,697.81,0.28661096]
[1735090635630,0.28609847,699.06,697.81,0.28661096]
[1735090635631,0.26332525,698.98,697.81,0.28661096]
[1735090635830,0.26332525,698.97,697.81,0.28661096]
[1735090636135,0.26332525,698.96,697.81,0.28661096]
[1735090636331,0.26332525,698.95,697.81,0.28661096]
[1735090636630,0.26332525,698.94,697.81,0.28661096]
[1735090636836,0.26332525,698.93,697.81,0.28661096]
[1735090637028,0.26332525,698.92,697.81,0.28661096]
[1735090637232,0.26332525,698.91,697.81,0.28661096]
[1735090637429,0.26332525,698.9,697.81,0.28661096]
[1735090637635,1.06953858,699.03,697.81,0.28661096]
[1735090637831,0.26331943,699.02,697.81,0.28661096]
[1735090638839,1.33285801,699.02,697.81,0.28661096]
[1735090639037,0.26331943,699.01,697.81,0.28661096]
[1735090639831,0.26331943,699.0,697.81,0.28661096]
[1735090640032,1.06953858,698.96,697.81,0.28661096]
[1735090640234,0.26331943,698.95,697.81,0.28661096]
[1735090640438,0.26332103,698.94,697.81,0.28661096]
[1735090640641,0.2633202,698.93,697.81,0.28661096]
[1735090640841,1.06953858,698.9,697.81,0.28661096]
[1735090641041,0.2633202,698.89,697.81,0.28661096]
[1735090641742,1.06953858,698.85,697.81,0.28661096]
[1735090641942,0.28609847,699.06,697.81,0.28661096]
[1735090641943,0.2633202,698.84,697.81,0.28661096]
[1735090642242,0.2633202,698.83,697.81,0.28661096]
[1735090642543,0.28609847,699.06,697.81,0.28661096]
[1735090642544,0.2633202,698.82,697.81,0.28661096]
[1735090642738,0.2633202,698.81,697.81,0.28661096]
[1735090642938,0.2633202,698.8,697.81,0.28661096]
[1735090643140,0.2633202,698.83,697.81,0.28661096]
[1735090643442,0.2633202,698.82,697.81,0.28661096]
[1735090643638,0.2633202,698.81,697.81,0.28661096]
[1735090643844,0.2633202,698.8,697.81,0.28661096]
[1735090644138,1.07064417,698.91,697.81,0.28661096]
[1735090644139,0.2633202,698.79,697.81,0.28661096]
[1735090644438,0.2633202,698.78,697.81,0.28661096]
[1735090644643,0.2633202,698.77,697.81,0.28661096]
[1735090644942,1.07064417,698.98,697.81,0.28661096]
[1735090644943,0.2633202,698.76,697.81,0.28661096]
[1735090645146,0.2633202,698.75,697.81,0.28661096]
[1735090645344,0.2633202,698.74,697.81,0.28661096]
[1735090645543,1.07064417,698.97,697.81,0.28661096]
[1735090645544,0.2633202,698.73,697.81,0.28661096]
[1735090645738,0.2633202,698.72,697.81,0.28661096]
[1735090645937,0.2633202,698.96,697.81,0.28661096]
[1735090646243,1.07064417,698.93,697.81,0.28661096]
[1735090646438,0.2633202,698.92,697.81,0.28661096]
[1735090647143,0.2633202,698.91,697.81,0.28661096]
[1735090647344,0.2633202,698.9,697.81,0.28661096]
[1735090647639,0.2633202,698.89,697.81,0.28661096]
[1735090647843,0.2633202,698.88,697.81,0.28661096]
[1735090648044,0.2633202,698.87,697.81,0.28661096]
[1735090648244,0.2633202,698.86,697.81,0.28661096]
[1735090648445,0.2633202,698.85,697.81,0.28661096]
[1735090648738,0.26331769,698.84,697.81,0.28661096]
[1735090648938,0.28609847,699.06,697.81,0.28661096]
[1735090648939,0.26331769,698.83,697.81,0.28661096]
[1735090649142,0.26331769,698.82,697.81,0.28661096]
[1735090649344,0.26331769,698.81,697.81,0.28661096]
[1735090649545,0.26331769,698.8,697.81,0.28661096]
[1735090649744,0.26331769,698.79,697.81,0.28661096]
[1735090649941,0.26331769,698.78,697.81,0.28661096]
[1735090650144,0.26331769,698.77,697.81,0.28661096]
[1735090650444,0.26331769,698.76,697.81,0.28661096]
[1735090650646,1.07064417,698.95,697.81,0.28661096]
[1735090650945,0.26332246,698.94,697.81,0.28661096]
[1735090651645,0.26332089,698.93,697.81,0.28661096]
[1735090651947,0.26332089,698.92,697.81,0.28661096]
[1735090652141,0.26330748,698.91,697.81,0.28661096]
[1735090652341,0.26330748,698.9,697.81,0.28661096]
[1735090652539,0.26330748,698.89,697.81,0.28661096]
[1735090652740,0.26330748,698.88,697.81,0.28661096]
[1735090652943,0.26330748,698.87,697.81,0.28661096]
[1735090653146,0.26330748,698.86,697.81,0.28661096]
[1735090653340,0.26330748,698.85,697.81,0.28661096]
[1735090653540,0.26330748,698.84,697.81,0.28661096]
[1735090653742,0.26330748,698.83,697.81,0.28661096]
[1735090653942,0.28609847,699.06,697.81,0.28661096]
[1735090654147,0.26330362,699.05,697.81,0.28661096]
[1735090654349,0.26330384,699.04,697.81,0.28661096]
[1735090654646,0.26330384,699.03,697.81,0.28661096]
[1735090654847,0.26330384,699.02,697.81,0.28661096]
[1735090655150,0.26330384,699.01,697.81,0.28661096]
[1735090655346,0.26330384,699.0,697.81,0.28661096]
[1735090655546,0.26330384,698.99,697.81,0.28661096]
[1735090655745,0.26330384,698.98,697.81,0.28661096]
[1735090655945,0.26330384,698.97,697.81,0.28661096]
[1735090656145,0.26330384,698.96,697.81,0.28661096]
[1735090656344,0.26330384,698.95,697.81,0.28661096]
[1735090656543,0.26330384,698.94,697.81,0.28661096]
[1735090656746,0.28609847,699.06,697.81,0.28661096]
[1735090657145,0.26329868,699.05,697.81,0.28661096]
[1735090659653,0.28609847,699.06,697.81,0.28661096]
[1735090659853,0.26332675,699.05,697.81,0.28661096]
[1735090660451,0.28609847,699.06,697.81,0.28661096]
[1735090660747,0.26333007,699.05,697.81,0.28661096]
[1735090662556,0.26332871,699.04,697.81,0.28661096]
[1735090662854,0.28609847,699.06,697.81,0.28661096]
[1735090662855,0.26332871,699.03,697.81,0.28661096]
[1735090663054,0.26332871,699.02,697.81,0.28661096]
[1735090663254,0.26332871,699.01,697.81,0.28661096]
[1735090663456,0.26332871,699.0,697.81,0.28661096]
[1735090663657,0.26332871,698.99,697.81,0.28661096]
[1735090663848,0.28609847,699.06,697.81,0.28661096]
[1735090663849,0.26332871,698.98,697.81,0.28661096]
[1735090664055,0.26332871,698.97,697.81,0.28661096]
[1735090664249,0.26332871,698.96,697.81,0.28661096]
[1735090664454,0.28609847,699.06,697.81,0.28661096]
[1735090664455,0.26332871,698.95,697.81,0.28661096]
[1735090664652,0.26332871,698.94,697.81,0.28661096]
[1735090664851,0.26332871,699.05,697.81,0.28661096]
[1735090665052,0.28609847,699.06,697.81,0.28661096]
[1735090665053,0.26332871,699.04,697.81,0.28661096]
[1735090665252,0.26332871,699.05,697.81,0.28661096]
[1735090665454,0.26332871,699.04,697.81,0.28661096]
[1735090665655,0.26332871,699.03,697.81,0.28661096]
[1735090665957,0.26332871,699.02,697.81,0.28661096]
[1735090666154,0.26332871,699.01,697.81,0.28661096]
[1735090666353,0.26332871,699.0,697.81,0.28661096]
[1735090666555,0.26332871,698.99,697.81,0.28661096]
[1735090666857,0.26332871,698.98,697.81,0.28661096]
[1735090667052,0.26332871,698.97,697.81,0.28661096]
[1735090667259,0.26332871,698.96,697.81,0.28661096]
[1735090667458,0.28609847,699.06,697.81,0.28661096]
[1735090667459,0.26332871,698.95,697.81,0.28661096]
[1735090667652,0.26332871,698.94,697.81,0.28661096]
[1735090667855,0.26332871,698.93,697.81,0.28661096]
[1735090668156,0.28609847,699.06,697.81,0.28661096]
[1735090668157,0.26333118,698.92,697.81,0.28661096]
[1735090668452,0.28609847,699.06,697.81,0.28661096]
[1735090668453,1.07064417,698.9,697.81,0.28661096]
[1735090668656,0.26333118,698.89,697.81,0.28661096]
[1735090669358,1.33397535,698.89,697.81,0.28661096]
[1735090669551,0.26333118,698.88,697.81,0.28661096]
[1735090670350,0.26333118,698.87,697.81,0.28661096]
[1735090670554,0.26333118,698.86,697.81,0.28661096]
[1735090670755,0.26333118,698.85,697.81,0.28661096]
[1735090670958,0.2633303,698.84,697.81,0.28661096]
[1735090671157,1.07064417,698.93,697.81,0.28661096]
[1735090671456,0.26332611,698.92,697.81,0.28661096]
[1735090672455,0.26332611,698.91,697.81,0.28661096]
[1735090672655,0.26332611,698.9,697.81,0.28661096]
[1735090672857,0.28609847,699.06,697.81,0.28661096]
[1735090673155,0.26332422,699.05,697.81,0.28661096]
[1735090673853,0.28609847,699.06,697.81,0.28661096]
[1735090673854,0.26332546,699.04,697.81,0.28661096]
[1735090674054,0.26332546,699.03,697.81,0.28661096]
[1735090674260,0.26332546,699.02,697.81,0.28661096]
[1735090674459,0.26332546,699.01,697.81,0.28661096]
[1735090674657,0.26332546,699.0,697.81,0.28661096]
[1735090674861,0.26332546,698.99,697.81,0.28661096]
[1735090675063,0.26332546,698.98,697.81,0.28661096]
[1735090675263,0.26332546,698.97,697.81,0.28661096]
[1735090675560,0.26332546,698.96,697.81,0.28661096]
[1735090675761,0.26332546,698.95,697.81,0.28661096]
[1735090675962,0.26332546,698.94,697.81,0.28661096]
[1735090676164,0.26332546,698.93,697.81,0.28661096]
[1735090676361,0.26332546,698.92,697.81,0.28661096]
[1735090676562,0.26334236,698.91,697.81,0.28661096]
[1735090676763,0.26334236,698.9,697.81,0.28661096]
[1735090676959,0.26334236,699.05,697.81,0.28661096]
[1735090677162,0.26334236,699.04,697.81,0.28661096]
[1735090677361,0.26334236,699.03,697.81,0.28661096]
[1735090677561,0.26334236,699.02,697.81,0.28661096]
[1735090677762,1.07064417,699.04,697.81,0.28661096]
[1735090677962,0.26334236,699.03,697.81,0.28661096]
[1735090678964,0.26334236,699.02,697.81,0.28661096]
[1735090679265,0.26334236,699.01,697.81,0.28661096]
[1735090679466,0.54946539,699.0,697.81,0.28661096]
[1735090679665,1.07064417,698.98,697.81,0.28661096]
[1735090679864,0.26334236,698.97,697.81,0.28661096]
[1735090680860,0.26334236,698.96,697.81,0.28661096]
[1735090681061,0.26334236,698.95,697.81,0.28661096]
[1735090681260,0.26338911,698.94,697.81,0.28661096]
[1735090681466,1.07064417,698.79,697.81,0.28661096]
[1735090681668,0.26338911,698.78,697.81,0.28661096]
[1735090682466,0.26338911,698.77,696.94,1.07095492]
[1735090682766,0.26338911,698.76,696.96,0.28696051]
[1735090682967,0.26338911,698.75,696.96,0.28696051]
[1735090683167,1.07064417,698.8,696.96,0.28696051]
[1735090683168,0.26338911,698.74,696.96,0.28696051]
[1735090683369,0.26338911,698.73,696.96,0.28696051]
[1735090683668,0.26338911,698.72,696.96,0.28696051]
[1735090683869,1.07064417,698.81,696.96,0.28696051]
[1735090684068,0.26338294,698.8,696.96,0.28696051]
[1735090684269,0.26338294,698.79,696.96,0.28696051]
[1735090684463,0.26338294,698.78,696.96,0.28696051]
[1735090684768,0.26339296,698.77,696.96,0.28696051]
[1735090684970,0.26339296,698.76,696.96,0.28696051]
[1735090685167,0.26339296,698.75,696.96,0.28696051]
[1735090685371,0.26339296,698.74,696.96,0.28696051]
[1735090685668,0.26339296,698.73,696.96,0.28696051]
[1735090685874,0.26339296,698.72,696.96,0.28696051]
[1735090686068,0.26339296,698.71,696.96,0.28696051]
[1735090686264,0.26339296,698.7,696.96,0.28696051]
[1735090686467,0.26339296,698.69,696.96,0.28696051]
[1735090686663,0.26339296,698.82,696.96,0.28696051]
[1735090686868,0.26339296,698.81,696.96,0.28696051]
[1735090687070,0.26339296,698.8,696.96,0.28696051]
[1735090687266,0.26339296,698.79,696.96,0.28696051]
[1735090687465,0.26339296,698.78,696.96,0.28696051]
[1735090687667,0.26339296,698.77,696.96,0.28696051]
[1735090687972,0.26339296,698.76,696.96,0.28696051]
[1735090688170,1.07064417,698.8,696.96,0.28696051]
[1735090688171,0.26339296,698.75,696.96,0.28696051]
[1735090688368,0.26339296,698.74,696.96,0.28696051]
[1735090688569,0.26339296,698.73,696.96,0.28696051]
[1735090688766,0.26339296,698.72,696.96,0.28696051]
[1735090688966,0.26339296,698.71,696.96,0.28696051]
[1735090689172,0.26339296,698.7,696.96,0.28696051]
[1735090689373,1.07064417,698.82,696.96,0.28696051]
[1735090689674,0.26344574,698.81,696.96,0.28696051]
[1735090690279,0.26344574,698.8,696.96,0.28696051]
[1735090690569,0.26344574,698.79,696.96,0.28696051]
[1735090690874,0.26344574,698.78,696.96,0.28696051]
[1735090691174,0.26344574,698.77,696.96,0.28696051]
[1735090691372,0.26344574,698.76,696.96,0.28696051]
[1735090691574,0.26344574,698.75,696.96,0.28696051]
[1735090691772,0.26344574,698.74,696.96,0.28696051]
[1735090691974,0.26344574,698.73,696.96,0.28696051]
[1735090692175,0.26345254,698.72,696.96,0.28696051]
[1735090692371,0.26345254,698.71,696.96,0.28696051]
[1735090692576,0.26345254,698.7,696.96,0.28696051]
[1735090692779,0.26345254,698.69,696.96,0.28696051]
[1735090692976,0.2634532,698.68,696.96,0.28696051]
[1735090693276,0.2634532,698.67,696.96,0.28696051]
[1735090693478,0.2634532,698.66,696.96,0.28696051]
[1735090693679,0.2634532,698.65,696.96,0.28696051]
[1735090693978,0.2634532,698.64,696.96,0.28696051]
[1735090694177,0.2634532,698.63,696.96,0.28696051]
[1735090694372,0.2634532,698.62,696.96,0.28696051]
[1735090694573,0.2634532,698.61,696.96,0.28696051]
[1735090694779,0.2634532,698.6,696.96,0.28696051]
[1735090694980,0.26345913,698.59,696.96,0.28696051]
[1735090695180,0.26345913,698.58,696.96,0.28696051]
[1735090695379,0.26345913,698.57,696.96,0.28696051]
[1735090695580,0.26345913,698.56,696.96,0.28696051]
[1735090695776,0.26345913,698.55,696.96,0.28696051]
[1735090695984,1.07064417,698.93,696.96,0.28696051]
[1735090696282,0.26352426,698.92,696.96,0.28696051]
[1735090696481,1.07064417,698.91,696.96,0.28696051]
[1735090696677,0.26352426,698.9,696.96,0.28696051]
[1735090697676,0.26350568,698.89,696.96,0.28696051]
[1735090697885,0.26350568,698.88,696.96,0.28696051]
[1735090698181,1.06656317,698.94,696.96,0.28696051]
[1735090698779,0.28612303,699.0,696.96,0.28696051]
[1735090698780,1.06656317,698.77,696.96,0.28696051]
[1735090699679,0.2862213,698.76,696.96,0.28696051]
[1735090700581,1.06656317,698.67,696.96,0.28696051]
[1735090700886,0.28626227,698.66,696.96,0.28696051]
[1735090701684,0.26352026,698.65,696.96,0.28696051]
[1735090701885,0.28627046,698.64,696.96,0.28696051]
[1735090702487,0.26351359,698.63,696.96,0.28696051]
[1735090702678,0.54979978,698.62,696.96,0.28696051]
[1735090702883,0.54980388,698.61,696.96,0.28696051]
[1735090703084,0.54980797,698.6,696.96,0.28696051]
[1735090703384,0.54981207,698.59,696.96,0.28696051]
[1735090703685,0.26352112,698.58,696.96,0.28696051]
[1735090705381,0.28629095,698.59,696.96,0.28696051]
[1735090705588,0.26352967,698.58,696.96,0.28696051]
[1735090709791,0.54982472,698.58,696.96,0.28696051]
[1735090709985,0.26352967,698.57,696.96,0.28696051]
[1735090710892,0.28629505,698.58,696.96,0.28696051]
[1735090711093,0.26354109,698.57,696.96,0.28696051]
[1735090711487,0.28630325,698.56,696.96,0.28696051]
[1735090711687,0.26354109,698.55,696.96,0.28696051]
[1735090713788,0.28631144,698.54,696.96,0.28696051]
[1735090713995,0.26354109,698.53,696.96,0.28696051]
[1735090714187,0.28631964,698.52,696.96,0.28696051]
[1735090714594,0.26354838,698.51,696.96,0.28696051]
[1735090715493,0.28632784,698.5,696.96,0.28696051]
[1735090715694,0.26354838,698.49,696.96,0.28696051]
[1735090715993,0.28633604,698.48,696.96,0.28696051]
[1735090716195,0.26354838,698.47,696.96,0.28696051]
[1735090716595,0.26355838,698.46,696.96,0.28696051]
[1735090716796,0.26355838,698.45,696.96,0.28696051]
[1735090716996,0.26355838,698.44,696.96,0.28696051]
[1735090717190,0.28633604,698.48,696.96,0.28696051]
[1735090717191,0.26355838,698.43,696.96,0.28696051]
[1735090717389,0.26355838,698.42,696.96,0.28696051]
[1735090717593,0.26355838,698.41,696.96,0.28696051]
[1735090717792,0.26355838,698.4,696.96,0.28696051]
[1735090717995,0.26354196,698.39,696.96,0.28696051]
[1735090718191,0.26354196,698.38,696.96,0.28696051]
[1735090718395,0.26354196,698.37,696.96,0.28696051]
[1735090718595,0.26354196,698.36,696.96,0.28696051]
[1735090718796,0.28633604,698.48,696.96,0.28696051]
[1735090718996,0.26349048,698.47,696.96,0.28696051]
[1735090719191,0.26347907,698.46,696.96,0.28696051]
[1735090719395,0.26347907,698.45,696.96,0.28696051]
[1735090719595,0.26347907,698.44,696.96,0.28696051]
[1735090719794,0.26347907,698.43,696.96,0.28696051]
[1735090719997,0.26347907,698.42,696.96,0.28696051]
[1735090720195,0.26347907,698.41,696.96,0.28696051]
[1735090720498,0.26347907,698.4,696.96,0.28696051]
[1735090720697,0.26347907,698.39,696.96,0.28696051]
[1735090720893,0.26347907,698.38,696.96,0.28696051]
[1735090721095,0.26347907,698.37,696.96,0.28696051]
[1735090721295,0.26347907,698.36,696.96,0.28696051]
[1735090721492,0.26347907,698.35,696.96,0.28696051]
[1735090721793,0.28633604,698.48,696.96,0.28696051]
[1735090722097,0.26348576,698.47,696.96,0.28696051]
[1735090722793,1.06656317,698.46,696.96,0.28696051]
[1735090722998,0.26348576,698.45,696.96,0.28696051]
[1735090723900,1.33004893,698.45,696.96,0.28696051]
[1735090724102,0.26348576,698.44,696.96,0.28696051]
[1735090724600,1.06656317,698.45,696.96,0.28696051]
[1735090724801,0.26347137,698.44,696.96,0.28696051]
[1735090725200,0.26347137,698.43,696.96,0.28696051]
[1735090725501,0.26347137,698.42,696.96,0.28696051]
[1735090725801,0.26347137,698.41,696.96,0.28696051]
[1735090726001,0.26347137,698.4,696.96,0.28696051]
[1735090726202,0.26347137,698.39,696.96,0.28696051]
[1735090726400,0.26347137,698.38,696.96,0.28696051]
[1735090726600,0.26347137,698.37,696.96,0.28696051]
[1735090726902,0.26347137,698.36,696.96,0.28696051]
[1735090727094,0.26347137,698.35,696.96,0.28696051]
[1735090727298,1.06656317,698.46,696.96,0.28696051]
[1735090727499,0.26346585,698.45,696.96,0.28696051]
[1735090728505,0.26346585,698.44,696.96,0.28696051]
[1735090728804,0.26346585,698.43,696.96,0.28696051]
[1735090729007,0.26346585,698.42,696.96,0.28696051]
[1735090729203,1.06656317,698.4,696.96,0.28696051]
[1735090729404,0.26346585,698.39,696.96,0.28696051]
[1735090730105,1.35289921,698.48,696.96,0.28696051]
[1735090730501,0.26346127,698.47,696.96,0.28696051]
[1735090730904,0.26346519,698.46,696.96,0.28696051]
[1735090731198,0.26346519,698.45,696.96,0.28696051]
[1735090731403,0.26346519,698.44,696.96,0.28696051]
[1735090731704,0.26346519,698.43,696.96,0.28696051]
[1735090731903,0.28633604,698.48,696.96,0.28696051]
[1735090731904,0.26346519,698.42,696.96,0.28696051]
[1735090732100,0.26346519,698.41,696.96,0.28696051]
[1735090732307,0.26346519,698.4,696.96,0.28696051]
[1735090732504,0.26346519,698.39,696.96,0.28696051]
[1735090732705,0.26346519,698.38,696.96,0.28696051]
[1735090732998,0.26346519,698.37,696.96,0.28696051]
[1735090733199,0.28633604,698.48,696.96,0.28696051]
[1735090733399,0.26343966,698.47,696.96,0.28696051]
[1735090734605,0.26343966,698.46,696.96,0.28696051]
[1735090734906,0.26343966,698.45,696.96,0.28696051]
[1735090735102,0.2634264,698.75,696.96,0.28696051]
[1735090735302,0.26339398,698.74,696.96,0.28696051]
[1735090735502,0.26339398,698.73,696.96,0.28696051]
[1735090735699,0.26339065,698.72,696.96,0.28696051]
[1735090735903,0.26339065,698.71,696.96,0.28696051]
[1735090736102,0.26339065,698.7,696.96,0.28696051]
[1735090736301,0.26337954,699.18,696.96,0.28696051]
[1735090736510,1.07064417,699.12,696.96,0.28696051]
[1735090736807,0.26337916,699.11,696.96,0.28696051]
[1735090737305,0.26337916,699.1,696.96,0.28696051]
[1735090737507,0.26337916,699.09,696.96,0.28696051]
[1735090737707,0.26337916,699.08,696.96,0.28696051]
[1735090737900,0.26337916,699.07,696.96,0.28696051]
[1735090738104,0.26337916,699.06,696.96,0.28696051]
[1735090738303,0.26337916,699.05,696.96,0.28696051]
[1735090738506,0.26337832,699.04,696.96,0.28696051]
[1735090738801,0.26337832,699.03,696.96,0.28696051]
[1735090739007,0.26337832,699.02,696.96,0.28696051]
[1735090739204,0.26337832,699.15,696.96,0.28696051]
[1735090739400,0.26337832,699.14,696.96,0.28696051]
[1735090739602,0.26337832,699.13,696.96,0.28696051]
[1735090739802,0.26337832,699.12,696.96,0.28696051]
[1735090740006,0.26337832,699.11,696.96,0.28696051]
[1735090740208,0.26337832,699.1,696.96,0.28696051]
[1735090740409,0.26337832,699.09,696.96,0.28696051]
[1735090740605,0.26337832,699.08,696.96,0.28696051]
[1735090740808,0.26337832,699.07,696.96,0.28696051]
[1735090741009,0.26337832,699.15,696.96,0.28696051]
[1735090741205,0.26337832,699.14,696.96,0.28696051]
[1735090741412,0.26337832,699.13,696.96,0.28696051]
[1735090741607,0.26337832,699.12,696.96,0.28696051]
[1735090741810,0.28605755,699.16,696.96,0.28696051]
[1735090741811,0.26337832,699.11,696.96,0.28696051]
[1735090742012,0.26337832,699.1,696.96,0.28696051]
[1735090742314,0.26337832,699.09,696.96,0.28696051]
[1735090742607,0.26337832,699.08,696.96,0.28696051]
[1735090742812,0.26337832,699.07,696.96,0.28696051]
[1735090743012,0.26337832,699.06,696.96,0.28696051]
[1735090743213,0.2633789,699.05,696.96,0.28696051]
[1735090743412,0.2633789,699.04,696.96,0.28696051]
[1735090743714,0.2633789,699.03,696.96,0.28696051]
[1735090743911,0.2633789,699.02,696.96,0.28696051]